[Event "WCCC U12 2019"]
[Site "Weifang"]
[Date "2019.08.22"]
[Round "2"]
[White "Hoang, Minh Hieu"]
[Black "Ochirbat, Lkhagvajamts"]
[Result "1/2-1/2"]
[ECO "A39"]
[WhiteElo "1848"]
[BlackElo "2137"]
[Annotator "NA"]
[PlyCount "139"]
[EventDate "2019.08.21"]
[EventType "swiss"]
[EventCountry "CHN"]
[SourceTitle "playchess.com"]
[Source "ChessBase"]
[SourceQuality "1"]
[TimeControl "40/5400+30:1800+30"]

1. d4 {[%emt 0:00:20]} Nf6 {[%emt 0:00:00]} 2. c4 {[%emt 0:00:12]} c5 {[%emt 0:00:00]} 3. Nf3 {[%emt 0:00:33]} g6 {[%emt 0:00:27]} 4. Nc3 {[%emt 0:03:44]} cxd4 {[%emt 0:03:16]} 5. Nxd4 {[%emt 0:00:16]} Bg7 {[%emt 0:00:08]} 6. g3 {[%emt 0:00:21]} Nc6 {[%emt 0:01:17]} 7. Bg2 {[%emt 0:02:58]} O-O {[%emt 0:00:54]} 8. O-O {[%emt 0:02:15]} Qb6 {[%emt 0:07:58]} 9. Nc2 {[%emt 0:03:42]} d6 {[%emt 0:02:53]} 10. b3 {[%emt 0:02:52]} Rd8 {[%emt 0:04:13]} 11. Bb2 {[%emt 0:02:45]} e6 {[%emt 0:01:44]} 12. e4 {[%emt 0:01:25]} a6 {[%emt 0:02:53]} 13. Qd2 {[%emt 0:03:45]} Qc7 {[%emt 0:01:15]} 14. Rad1 {[%emt 0:02:25]} Rb8 {[%emt 0:02:32]} 15. Qe2 {[%emt 0:09:36]} b6 {[%emt 0:04:52]} 16. Kh1 {[%emt 0:02:15]} Bb7 {[%emt 0:00:57]} 17. f4 {[%emt 0:00:13]} Ne7 {[%emt 0:14:47]} 18. Nd4 {[%emt 0:03:56]} Nd7 {[%emt 0:05:20]} 19. f5 {[%emt 0:11:49]} exf5 {[%emt 0:12:17]} 20. exf5 {[%emt 0:00:08]} Bxg2+ {[%emt 0:04:02]} 21. Kxg2 {[%emt 0:09:41]} Re8 {[%emt 0:04:01]} 22. fxg6 {[%emt 0:02:59]} Nxg6 {[%emt 0:07:10]} 23. Qf2 {[%emt 0:01:07]} Nf6 {[%emt 0:10:15]} 24. h3 {[%emt 0:03:43]} Qb7+ {[%emt 0:04:31]} 25. Kh2 {[%emt 0:00:12]} Rbd8 {[%emt 0:03:06]} 26. Nf5 {[%emt 0:01:16]} Bf8 {[%emt 0:00:19]} 27. Ne3 {[%emt 0:04:08]} Re6 {[%emt 0:01:31]} 28. Ned5 {[%emt 0:00:34]} Ne8 {[%emt 0:00:44]} 29. Ne2 {[%emt 0:00:51]} b5 {[%emt 0:00:27]} 30. Nef4 {[%emt 0:01:18]} bxc4 {[%emt 0:00:36]} 31. Nxe6 {[%emt 0:05:12]} fxe6 {[%emt 0:00:01]} 32. Nf6+ {[%emt 0:00:15]} Nxf6 {[%emt 0:00:01]} 33. Qxf6 {[%emt 0:00:03]} Re8 {[%emt 0:00:02]} 34. bxc4 {[%emt 0:00:37]} e5 {[%emt 0:00:43]} 35. Ba3 {[%emt 0:00:24]} Qc7 {[%emt 0:01:05]} 36. Bxd6 {[%emt 0:01:02]} Qxc4 {[%emt 0:00:16]} 37. Rf2 {[%emt 0:00:16]} Bg7 {[%emt 0:00:23]} 38. Qf3 {[%emt 0:00:18]} e4 {[%emt 0:01:29]} 39. Qb3 {[%emt 0:05:13]} Qxb3 {[%emt 0:00:08]} 40. axb3 {[%emt 0:00:05]} Rd8 {[%emt 0:00:04]} 41. Re2 {[%emt 0:30:18]} Bf8 {[%emt 0:02:30]} 42. Rxe4 {[%emt 0:00:44]} Rxd6 {[%emt 0:00:31]} 43. Rxd6 {[%emt 0:00:01]} Bxd6 {[%emt 0:00:01]} 44. Re6 {[%emt 0:00:01]} Be7 {[%emt 0:01:20]} 45. Rxa6 {[%emt 0:00:05]} Kf7 {[%emt 0:01:08]} 46. Kg2 {[%emt 0:00:13]} Nf8 {[%emt 0:03:24]} 47. Rh6 {[%emt 0:01:22]} Kg7 {[%emt 0:03:16]} 48. Rb6 {[%emt 0:00:18]} Kf7 {[%emt 0:00:43]} 49. b4 {[%emt 0:01:25]} Nd7 {[%emt 0:00:32]} 50. Rb7 {[%emt 0:00:19]} Ke6 {[%emt 0:00:10]} 51. Kf3 {[%emt 0:00:26]} Kd6 {[%emt 0:01:55]} 52. Rb5 {[%emt 0:01:27]} Kc6 {[%emt 0:02:42]} 53. Rh5 {[%emt 0:00:30]} Nf8 {[%emt 0:00:21]} 54. b5+ {[%emt 0:00:10]} Kb6 {[%emt 0:00:08]} 55. Ke4 {[%emt 0:00:25]} Bc5 {[%emt 0:00:29]} 56. Ke5 {[%emt 0:01:15]} Kxb5 {[%emt 0:04:08]} 57. Kf6 {[%emt 0:00:15]} Kc4 {[%emt 0:02:07]} 58. Kg7 {[%emt 0:00:18]} Kd4 {[%emt 0:03:50]} 59. Rf5 {[%emt 0:01:19]} Ke4 {[%emt 0:03:21]} 60. g4 {[%emt 0:00:15]} Ne6+ {[%emt 0:00:36]} 61. Kf7 {[%emt 0:03:01]} Nd8+ {[%emt 0:00:20]} 62. Kf6 {[%emt 0:00:11]} Bd4+ {[%emt 0:00:26]} 63. Ke7 {[%emt 0:00:40]} Nc6+ {[%emt 0:00:20]} 64. Kd6 {[%emt 0:00:05]} Ne5 {[%emt 0:00:51]} 65. Rh5 {[%emt 0:00:12]} h6 {[%emt 0:01:15]} 66. Ke6 {[%emt 0:00:24]} Nf3 {[%emt 0:01:26]} 67. Rxh6 {[%emt 0:00:21]} Be3 {[%emt 0:00:06]} 68. Rh5 {[%emt 0:01:21]} Bg5 {[%emt 0:01:27]} 69. Kf7 {[%emt 0:00:41]} Kf4 {[%emt 0:00:04]} 70. Rh8 {[%emt 0:00:37]} 1/2-1/2

[Event "WCCC U12 2019"]
[Site "Weifang"]
[Date "2019.08.22"]
[Round "2"]
[White "Amgalantengis, Enkh-Amgalan"]
[Black "Chen, Max"]
[Result "0-1"]
[ECO "D91"]
[WhiteElo "1784"]
[BlackElo "2056"]
[Annotator "NA"]
[PlyCount "63"]
[EventDate "2019.08.21"]
[EventType "swiss"]
[EventCountry "CHN"]
[SourceTitle "playchess.com"]
[Source "ChessBase"]
[SourceQuality "1"]
[TimeControl "40/5400+30:1800+30"]

1. d4 Nf6 2. c4 g6 3. Nc3 d5 4. Nf3 Bg7 5. Bg5 Ne4 6. cxd5 Nxc3 7. bxc3 Qxd5 8. e3 Bg4 9. Bf4 Bxf3 10. Qxf3 Qxf3 11. gxf3 c6 12. Rb1 b6 13. Bg3 O-O 14. Bd3 Re8 15. O-O e5 16. Rfd1 Nd7 17. dxe5 Nxe5 18. Be2 c5 19. f4 Nc6 20. Bf3 Rac8 21. Bxc6 Rxc6 22. c4 Re4 23. Rbc1 Rce6 24. Rd5 Bb2 25. Rc2 Ba3 26. f5 gxf5 27. Rxf5 a6 28. Be5 b5 29. Bb2 Bxb2 30. Rxb2 Rg6+ 31. Kf1 bxc4 32. Rc2 0-1

[Event "WCCC U12 2019"]
[Site "Weifang"]
[Date "2019.08.29"]
[Round "8.1"]
[White "Zhou, Liran"]
[Black "Pingin, Artem"]
[Result "1-0"]
[ECO "B86"]
[WhiteElo "2311"]
[BlackElo "2155"]
[Annotator "RC"]
[PlyCount "113"]
[EventDate "2019.08.21"]
[EventType "swiss"]
[EventCountry "CHN"]
[SourceTitle "playchess.com"]
[Source "ChessBase"]
[SourceQuality "1"]
[TimeControl "40/5400+30:1800+30"]

1. e4 {[%emt 0:00:00]} c5 {[%emt 0:00:00]} 2. Nf3 {[%emt 0:00:00]} d6 {[%emt 0:00:00]} 3. d4 {[%emt 0:00:00]} cxd4 {[%emt 0:00:00]} 4. Nxd4 {[%emt 0:00:00]} Nf6 {[%emt 0:00:02]} 5. Nc3 {[%emt 0:00:07]} a6 {[%emt 0:00:05]} 6. Bc4 {[%emt 0:00:10]} e6 {[%emt 0:00:20]} 7. O-O {[%emt 0:00:07]} Nbd7 {[%emt 0:00:27]} 8. Re1 {[%emt 0:03:26]} b5 {[%emt 0:04:27]} 9. Bd5 {[%emt 0:12:53]} Nxd5 {[%emt 0:04:48]} 10. exd5 {[%emt 0:00:10]} e5 {[%emt 0:00:18]} 11. Nc6 {[%emt 0:00:15]} Qc7 {[%emt 0:01:30]} 12. a4 {[%emt 0:06:47]} bxa4 {[%emt 0:00:33]} 13. Rxa4 {[%emt 0:01:27]} Nb6 {[%emt 0:02:31]} 14. Rb4 {[%emt 0:03:08]} Bd7 {[%emt 0:01:11]} 15. Qd4 {[%emt 0:14:30]} Nc8 {[%emt 0:08:36]} 16. Rc4 {[%emt 0:01:35]} Ne7 {[%emt 0:14:42]} 17. Nxe7 {[%emt 0:04:05]} exd4 {[%emt 0:01:00]} 18. Rxc7 {[%emt 0:00:27]} Bxe7 {[%emt 0:00:04]} 19. Na4 {[%emt 0:01:12]} Rb8 {[%emt 0:04:02]} 20. Bd2 {[%emt 0:03:17]} h5 {[%emt 0:22:35]} 21. Ba5 {[%emt 0:02:55]} Bxa4 {[%emt 0:09:42]} 22. Rexe7+ {[%emt 0:00:41]} Kf8 {[%emt 0:00:02]} 23. Rxf7+ {[%emt 0:00:17]} Kg8 {[%emt 0:00:09]} 24. Rxg7+ {[%emt 0:00:18]} Kf8 {[%emt 0:00:03]} 25. b3 {[%emt 0:08:56]} d3 {[%emt 0:00:59]} 26. cxd3 {[%emt 0:00:08]} Bxb3 {[%emt 0:01:25]} 27. Rcf7+ {[%emt 0:01:30]} Ke8 {[%emt 0:00:08]} 28. Rb7 {[%emt 0:00:11]} Rc8 {[%emt 0:01:31]} 29. Rge7+ {[%emt 0:05:18]} Kf8 {[%emt 0:00:11]} 30. Rec7 {[%emt 0:00:13]} Rxc7 {[%emt 0:00:19]} 31. Bxc7 {[%emt 0:00:05]} Bxd5 {[%emt 0:00:29]} 32. Bxd6+ {[%emt 0:00:06]} Kg8 {[%emt 0:00:06]} 33. Rb8+ {[%emt 0:01:02]} Kh7 {[%emt 0:00:04]} 34. Rxh8+ {[%emt 0:00:07]} Kxh8 {[%emt 0:00:03]} 35. f3 {[%emt 0:00:15]} Kg7 {[%emt 0:01:15]} 36. Kf2 {[%emt 0:00:04]} Kf6 {[%emt 0:00:39]} 37. g4 {[%emt 0:00:20]} Kg5 {[%emt 0:03:25]} 38. Kg3 {[%emt 0:01:18]} hxg4 {[%emt 0:00:07]} 39. fxg4 {[%emt 0:00:07]} a5 {[%emt 0:00:40]} 40. h4+ {[%emt 0:00:00]} Kf6 {[%emt 0:00:00]} 41. Kf4 {[%emt 0:00:16]} Bb3 {[%emt 0:01:38]} 42. h5 {[%emt 0:00:18]} Bd1 {[%emt 0:00:11]} 43. d4 {[%emt 0:00:12]} a4 {[%emt 0:00:05]} 44. Bc5 {[%emt 0:00:06]} Ke6 {[%emt 0:00:40]} 45. Kg5 {[%emt 0:00:28]} Be2 {[%emt 0:00:20]} 46. Ba3 {[%emt 0:00:25]} Bf3 {[%emt 0:01:18]} 47. h6 {[%emt 0:00:33]} Be4 {[%emt 0:00:03]} 48. d5+ {[%emt 0:00:07]} Kf7 {[%emt 0:02:57]} 49. d6 {[%emt 0:00:45]} Ke6 {[%emt 0:00:05]} 50. d7 {[%emt 0:00:08]} Kxd7 {[%emt 0:00:04]} 51. Kf6 {[%emt 0:00:03]} Kc6 {[%emt 0:02:14]} 52. g5 {[%emt 0:00:04]} Kb5 {[%emt 0:00:02]} 53. g6 {[%emt 0:00:05]} Kc4 {[%emt 0:00:03]} 54. h7 {[%emt 0:00:04]} Kb3 {[%emt 0:00:02]} 55. Bd6 {[%emt 0:00:05]} a3 {[%emt 0:00:03]} 56. h8=Q {[%emt 0:00:10]} a2 {[%emt 0:00:02]} 57. Be5 {[%emt 0:00:05]} 1-0

[Event "WCCC U12 2019"]
[Site "Weifang"]
[Date "2019.08.29"]
[Round "8.2"]
[White "Chen, Yuan"]
[Black "Park, Evan"]
[Result "1/2-1/2"]
[ECO "E83"]
[WhiteElo "1884"]
[BlackElo "2078"]
[Annotator "NA"]
[PlyCount "117"]
[EventDate "2019.08.21"]
[EventType "swiss"]
[EventCountry "CHN"]
[SourceTitle "playchess.com"]
[Source "ChessBase"]
[SourceQuality "1"]
[TimeControl "40/5400+30:1800+30"]

1. e4 {[%emt 0:00:00]} g6 {[%emt 0:00:39]} 2. d4 {[%emt 0:00:00]} Bg7 {[%emt 0:00:39]} 3. c4 {[%emt 0:00:49]} d6 {[%emt 0:00:13]} 4. Nc3 {[%emt 0:00:11]} Nf6 {[%emt 0:00:26]} 5. f3 {[%emt 0:01:25]} O-O {[%emt 0:00:26]} 6. Be3 {[%emt 0:00:08]} Nc6 {[%emt 0:00:43]} 7. Qd2 {[%emt 0:08:55]} a6 {[%emt 0:00:15]} 8. O-O-O {[%emt 0:04:46]} b5 {[%emt 0:12:42]} 9. cxb5 {[%emt 0:17:51]} axb5 {[%emt 0:02:17]} 10. Bxb5 {[%emt 0:00:38]} Na5 {[%emt 0:02:57]} 11. Qe2 {[%emt 0:14:57]} c6 {[%emt 0:05:16]} 12. Bd3 {[%emt 0:00:14]} Qb6 {[%emt 0:03:15]} 13. h4 {[%emt 0:20:07]} Ba6 {[%emt 0:07:53]} 14. Bxa6 {[%emt 0:00:16]} Rxa6 {[%emt 0:02:13]} 15. g4 {[%emt 0:03:27]} Rb8 {[%emt 0:02:31]} 16. Rd2 {[%emt 0:01:36]} Ra7 {[%emt 0:07:36]} 17. Rc2 {[%emt 0:06:25]} Qb4 {[%emt 0:04:34]} 18. Nb1 {[%emt 0:02:27]} Nd7 {[%emt 0:07:48]} 19. Qd2 {[%emt 0:08:23]} Nc4 {[%emt 0:04:42]} 20. Qxb4 {[%emt 0:00:06]} Rxb4 {[%emt 0:00:03]} 21. Bf2 {[%emt 0:00:14]} Rxa2 {[%emt 0:04:30]} 22. b3 {[%emt 0:00:16]} Ra1 {[%emt 0:02:37]} 23. Rc3 {[%emt 0:05:48]} Na3 {[%emt 0:04:04]} 24. Kb2 {[%emt 0:00:04]} Rxb1+ {[%emt 0:00:16]} 25. Kxa3 {[%emt 0:00:05]} Rb5 {[%emt 0:03:01]} 26. Ka2 {[%emt 0:02:25]} Rd1 {[%emt 0:02:17]} 27. Rc2 {[%emt 0:00:53]} c5 {[%emt 0:01:23]} 28. Kb2 {[%emt 0:00:41]} Rd3 {[%emt 0:03:09]} 29. Kc1 {[%emt 0:00:41]} Rdxb3 {[%emt 0:01:41]} 30. dxc5 {[%emt 0:00:10]} Nxc5 {[%emt 0:00:54]} 31. Kd2 {[%emt 0:00:26]} Rb2 {[%emt 0:02:00]} 32. Bxc5 {[%emt 0:00:40]} dxc5 {[%emt 0:01:21]} 33. Nh3 {[%emt 0:00:05]} Rxc2+ {[%emt 0:00:53]} 34. Kxc2 {[%emt 0:00:03]} Rb2+ {[%emt 0:00:12]} 35. Kd3 {[%emt 0:00:03]} Rb3+ {[%emt 0:00:27]} 36. Ke2 {[%emt 0:00:07]} Bd4 {[%emt 0:00:10]} 37. Rf1 {[%emt 0:01:00]} c4 {[%emt 0:01:31]} 38. Rd1 {[%emt 0:00:04]} e5 {[%emt 0:00:17]} 39. Ng1 {[%emt 0:00:22]} Rb2+ {[%emt 0:00:18]} 40. Kf1 {[%emt 0:00:00]} Bxg1 {[%emt 0:00:00]} 41. Kxg1 {[%emt 0:00:08]} c3 {[%emt 0:04:54]} 42. Rc1 {[%emt 0:00:08]} c2 {[%emt 0:00:08]} 43. Kf2 {[%emt 0:00:03]} f5 {[%emt 0:04:05]} 44. Ke2 {[%emt 0:03:33]} Kf7 {[%emt 0:02:46]} 45. Kd2 {[%emt 0:04:32]} fxe4 {[%emt 0:01:48]} 46. fxe4 {[%emt 0:00:03]} Rb4 {[%emt 0:00:51]} 47. Rxc2 {[%emt 0:03:35]} Rxe4 {[%emt 0:00:05]} 48. Rc7+ {[%emt 0:00:05]} Ke6 {[%emt 0:00:48]} 49. Rxh7 {[%emt 0:00:28]} Rxg4 {[%emt 0:00:03]} 50. Ke3 {[%emt 0:09:58]} Ra4 {[%emt 0:02:03]} 51. Kf3 {[%emt 0:06:50]} Rf4+ {[%emt 0:00:48]} 52. Ke3 {[%emt 0:01:29]} Kf5 {[%emt 0:00:40]} 53. Rh8 {[%emt 0:05:09]} Ra4 {[%emt 0:02:51]} 54. Rf8+ {[%emt 0:01:36]} Kg4 {[%emt 0:00:37]} 55. Rg8 {[%emt 0:00:19]} Ra6 {[%emt 0:00:40]} 56. Rh8 {[%emt 0:00:05]} Kg3 {[%emt 0:01:49]} 57. Ke4 {[%emt 0:00:56]} Re6 {[%emt 0:01:58]} 58. Rh6 {[%emt 0:00:14]} Kg4 {[%emt 0:00:42]} 59. h5 {[%emt 0:00:12]} 1/2-1/2

[Event "WCCC U12 2019"]
[Site "Weifang"]
[Date "2019.08.29"]
[Round "8.3"]
[White "Navumenka, Mikhei"]
[Black "Chen, Jonathan"]
[Result "1/2-1/2"]
[ECO "E04"]
[WhiteElo "2148"]
[BlackElo "1948"]
[Annotator "ChessBase"]
[PlyCount "75"]
[EventDate "2019.08.21"]
[EventType "swiss"]
[EventCountry "CHN"]
[SourceTitle "playchess.com"]
[Source "ChessBase"]
[SourceQuality "1"]
[TimeControl "40/5400+30:1800+30"]

1. d4 {[%emt 0:00:00]} Nf6 {[%emt 0:00:00]} 2. Nf3 {[%emt 0:01:21]} e6 {[%emt 0:00:52]} 3. c4 {[%emt 0:00:08]} d5 {[%emt 0:02:22]} 4. g3 {[%emt 0:00:14]} dxc4 {[%emt 0:01:46]} 5. Bg2 {[%emt 0:00:06]} a6 {[%emt 0:00:59]} 6. a4 {[%emt 0:10:27]} c5 {[%emt 0:05:36]} 7. O-O {[%emt 0:13:27]} Nc6 {[%emt 0:04:33]} 8. Na3 {[%emt 0:09:17]} cxd4 {[%emt 0:05:07]} 9. Nxc4 {[%emt 0:00:02]} Be7 {[%emt 0:01:01]} 10. Bf4 {[%emt 0:05:53]} O-O {[%emt 0:24:55]} 11. Nce5 {[%emt 0:03:58]} Qb6 {[%emt 0:06:23]} 12. Rc1 {[%emt 0:13:25]} Nd5 {[%emt 0:06:38]} 13. Nxc6 {[%emt 0:05:03]} bxc6 {[%emt 0:00:20]} 14. Nxd4 {[%emt 0:02:02]} Bb7 {[%emt 0:04:59]} 15. Qb3 {[%emt 0:07:26]} Bb4 {[%emt 0:11:50]} 16. Nc2 {[%emt 0:07:29]} Nxf4 {[%emt 0:02:17]} 17. gxf4 {[%emt 0:00:45]} c5 {[%emt 0:00:32]} 18. a5 {[%emt 0:09:46]} Qa7 {[%emt 0:00:47]} 19. Nxb4 {[%emt 0:01:55]} Bxg2 {[%emt 0:00:03]} 20. Kxg2 {[%emt 0:00:10]} Qb7+ {[%emt 0:00:02]} 21. f3 {[%emt 0:00:47]} cxb4 {[%emt 0:00:17]} 22. Rc4 {[%emt 0:00:12]} Rab8 {[%emt 0:00:38]} 23. Rc5 {[%emt 0:00:49]} Rfc8 {[%emt 0:02:08]} 24. Rfc1 {[%emt 0:00:10]} Rxc5 {[%emt 0:00:25]} 25. Rxc5 {[%emt 0:00:02]} h6 {[%emt 0:04:47]} 26. Qc4 {[%emt 0:01:17]} b3 {[%emt 0:07:10]} 27. Rc6 {[%emt 0:03:13]} Qb4 {[%emt 0:02:22]} 28. Rc8+ {[%emt 0:03:06]} Kh7 {[%emt 0:00:02]} 29. Qd3+ {[%emt 0:00:08]} g6 {[%emt 0:00:53]} 30. Rxb8 {[%emt 0:00:21]} Qxb8 {[%emt 0:00:03]} 31. Qxa6 {[%emt 0:00:47]} Qxf4 {[%emt 0:00:39]} 32. Qb7 {[%emt 0:00:50]} Qg5+ {[%emt 0:01:10]} 33. Kf2 {[%emt 0:00:04]} Qc5+ {[%emt 0:00:17]} 34. Kg2 {[%emt 0:00:33]} Qg5+ {[%emt 0:00:40]} 35. Kf2 {[%emt 0:00:04]} Qc5+ {[%emt 0:00:00]} 36. Kg2 {[%emt 0:01:32]} Qg5+ {[%emt 0:00:10]} 37. Kf2 {[%emt 0:00:46]} Qc5+ {[%emt 0:00:12]} 38. Kg2 {[%emt 0:00:01]} 1/2-1/2

[Event "WCCC U12 2019"]
[Site "Weifang"]
[Date "2019.08.29"]
[Round "8.4"]
[White "Ochirbat, Lkhagvajamts"]
[Black "Bai, Changlin"]
[Result "1-0"]
[ECO "D85"]
[WhiteElo "2137"]
[BlackElo "1752"]
[Annotator "ChessBase"]
[PlyCount "71"]
[EventDate "2019.08.21"]
[EventType "swiss"]
[EventCountry "CHN"]
[SourceTitle "playchess.com"]
[Source "ChessBase"]
[SourceQuality "1"]
[TimeControl "40/5400+30:1800+30"]

1. d4 {[%emt 0:00:00]} Nf6 {[%emt 0:00:00]} 2. c4 {[%emt 0:00:00]} g6 {[%emt 0:00:00]} 3. Nc3 {[%emt 0:00:00]} d5 {[%emt 0:00:00]} 4. cxd5 {[%emt 0:00:00]} Nxd5 {[%emt 1:32:00]} 5. e4 {[%emt 1:32:30]} Nxc3 {[%emt 0:00:30]} 6. bxc3 {[%emt 0:00:30]} Bg7 {[%emt 0:00:30]} 7. h3 {[%emt 0:00:30]} c5 {[%emt 0:00:30]} 8. Nf3 {[%emt 0:00:30]} Qa5 {[%emt 0:00:30]} 9. Bd2 {[%emt 0:00:30]} O-O {[%emt 0:00:30]} 10. Qb3 {[%emt 0:00:30]} e6 {[%emt 0:00:30]} 11. Rb1 {[%emt 0:00:30]} cxd4 {[%emt 0:00:30]} 12. cxd4 {[%emt 0:00:30]} Qd8 {[%emt 0:00:30]} 13. Bc3 {[%emt 0:00:30]} b6 {[%emt 0:00:30]} 14. Bd3 {[%emt 0:00:30]} Bb7 {[%emt 0:00:30]} 15. O-O {[%emt 0:00:30]} Nc6 {[%emt 0:00:30]} 16. Rfd1 {[%emt 0:00:30]} Re8 {[%emt 0:00:30]} 17. Bb5 {[%emt 0:00:30]} a6 {[%emt 0:00:30]} 18. Bxc6 {[%emt 0:00:30]} Bxc6 {[%emt 0:00:30]} 19. d5 {[%emt 0:00:30]} Bd7 {[%emt 0:00:30]} 20. Bxg7 {[%emt 0:00:30]} Kxg7 {[%emt 0:00:30]} 21. dxe6 {[%emt 0:00:30]} Rxe6 {[%emt 0:00:30]} 22. Qd5 {[%emt 0:00:30]} Ra7 {[%emt 0:00:30]} 23. Ne5 {[%emt 0:00:30]} Rxe5 {[%emt 0:00:30]} 24. Qxe5+ {[%emt 0:00:30]} f6 {[%emt 0:00:30]} 25. Qd4 {[%emt 0:00:30]} Rb7 {[%emt 0:00:30]} 26. e5 {[%emt 0:00:30]} Qe7 {[%emt 0:00:30]} 27. exf6+ {[%emt 0:00:30]} Qxf6 {[%emt 0:00:30]} 28. Qxf6+ {[%emt 0:00:30]} Kxf6 {[%emt 0:00:30]} 29. Rd6+ {[%emt 0:00:30]} Ke5 {[%emt 0:00:30]} 30. Rdxb6 {[%emt 0:00:30]} Rc7 {[%emt 0:00:30]} 31. Rxa6 {[%emt 0:00:30]} Rc2 {[%emt 0:00:30]} 32. Re1+ {[%emt 0:00:30]} Kf5 {[%emt 0:00:30]} 33. a4 {[%emt 0:00:30]} Ra2 {[%emt 0:00:30]} 34. a5 {[%emt 0:00:30]} Bb5 {[%emt 0:00:30]} 35. Rae6 {[%emt 0:00:30]} Ra1 {[%emt 0:00:30]} 36. g4+ {[%emt 0:00:30]} 1-0

[Event "WCCC U12 2019"]
[Site "Weifang"]
[Date "2019.08.29"]
[Round "8.5"]
[White "Dang, Anh Minh"]
[Black "Shahil Dey"]
[Result "1-0"]
[ECO "B41"]
[WhiteElo "1891"]
[BlackElo "2207"]
[Annotator "ChessBase"]
[PlyCount "119"]
[EventDate "2019.08.21"]
[EventType "swiss"]
[EventCountry "CHN"]
[SourceTitle "playchess.com"]
[Source "ChessBase"]
[SourceQuality "1"]
[TimeControl "40/5400+30:1800+30"]

1. e4 {[%emt 0:00:00]} c5 {[%emt 0:00:04]} 2. Nf3 {[%emt 0:00:00]} e6 {[%emt 0:00:00]} 3. d4 {[%emt 0:00:06]} cxd4 {[%emt 0:00:00]} 4. Nxd4 {[%emt 0:00:08]} a6 {[%emt 0:00:00]} 5. c4 {[%emt 0:00:25]} Nf6 {[%emt 0:00:00]} 6. Nc3 {[%emt 0:01:02]} Qc7 {[%emt 0:00:00]} 7. Qd3 {[%emt 0:00:13]} b6 {[%emt 0:00:00]} 8. Qg3 {[%emt 0:02:15]} d6 {[%emt 0:00:20]} 9. Be3 {[%emt 0:04:23]} Bb7 {[%emt 0:00:06]} 10. f3 {[%emt 0:00:33]} Nbd7 {[%emt 0:00:08]} 11. Rc1 {[%emt 0:05:23]} g6 {[%emt 0:10:00]} 12. Be2 {[%emt 0:02:26]} Bg7 {[%emt 0:01:07]} 13. O-O {[%emt 0:03:06]} O-O {[%emt 0:00:04]} 14. Rfd1 {[%emt 0:03:37]} Rac8 {[%emt 0:05:28]} 15. Nb3 {[%emt 0:09:19]} Ne8 {[%emt 0:02:12]} 16. Rd2 {[%emt 0:10:30]} Qb8 {[%emt 0:02:56]} 17. Rcd1 {[%emt 0:05:28]} Bc6 {[%emt 0:16:08]} 18. Qf2 {[%emt 0:05:23]} Bf6 {[%emt 0:10:12]} 19. Bh6 {[%emt 0:04:17]} Bg7 {[%emt 0:03:49]} 20. Bxg7 {[%emt 0:00:54]} Kxg7 {[%emt 0:00:07]} 21. Nd4 {[%emt 0:01:52]} Ba8 {[%emt 0:01:33]} 22. Nc2 {[%emt 0:00:53]} Ne5 {[%emt 0:02:40]} 23. Ne3 {[%emt 0:02:47]} Rd8 {[%emt 0:06:29]} 24. f4 {[%emt 0:20:14]} Nd7 {[%emt 0:02:17]} 25. e5 {[%emt 0:01:35]} Nc5 {[%emt 0:03:33]} 26. b4 {[%emt 0:01:03]} Nb7 {[%emt 0:06:01]} 27. Ng4 {[%emt 0:03:52]} dxe5 {[%emt 0:00:57]} 28. Nxe5 {[%emt 0:00:15]} Qc7 {[%emt 0:11:33]} 29. Rxd8 {[%emt 0:01:28]} Nxd8 {[%emt 0:00:04]} 30. Nd7 {[%emt 0:00:53]} Rg8 {[%emt 0:01:28]} 31. Nxb6 {[%emt 0:01:35]} Bc6 {[%emt 0:01:13]} 32. c5 {[%emt 0:00:39]} Bb7 {[%emt 0:04:41]} 33. a4 {[%emt 0:04:14]} Nf6 {[%emt 0:03:09]} 34. b5 {[%emt 0:00:15]} axb5 {[%emt 0:00:41]} 35. axb5 {[%emt 0:00:14]} Be4 {[%emt 0:03:55]} 36. Nxe4 {[%emt 0:01:27]} Nxe4 {[%emt 0:00:01]} 37. Qd4+ {[%emt 0:00:07]} e5 {[%emt 0:00:57]} 38. Qxe4 {[%emt 0:03:09]} Qxc5+ {[%emt 0:00:02]} 39. Kf1 {[%emt 0:00:21]} Qxb6 {[%emt 0:00:02]} 40. Qxe5+ {[%emt 0:00:00]} Qf6 {[%emt 0:00:00]} 41. Qxf6+ {[%emt 0:01:08]} Kxf6 {[%emt 0:03:55]} 42. b6 {[%emt 0:01:30]} Ne6 {[%emt 0:02:16]} 43. g3 {[%emt 0:00:30]} Rb8 {[%emt 0:00:17]} 44. Rb1 {[%emt 0:00:04]} Ke7 {[%emt 0:01:54]} 45. Bf3 {[%emt 0:00:08]} Nc5 {[%emt 0:03:53]} 46. b7 {[%emt 0:01:49]} Kd7 {[%emt 0:01:06]} 47. Rb6 {[%emt 0:00:49]} Ne6 {[%emt 0:00:07]} 48. Kf2 {[%emt 0:01:08]} Nd8 {[%emt 0:00:43]} 49. Ke3 {[%emt 0:00:56]} Kc7 {[%emt 0:00:04]} 50. Rf6 {[%emt 0:00:00]} Kd7 {[%emt 0:00:39]} 51. Bd5 {[%emt 0:01:36]} Ke7 {[%emt 0:00:58]} 52. Ra6 {[%emt 0:01:46]} Kd7 {[%emt 0:00:04]} 53. Kd4 {[%emt 0:03:10]} Ne6+ {[%emt 0:07:34]} 54. Bxe6+ {[%emt 0:01:02]} fxe6 {[%emt 0:00:01]} 55. Rb6 {[%emt 0:00:18]} Kc7 {[%emt 0:00:06]} 56. Rxe6 {[%emt 0:01:18]} Kxb7 {[%emt 0:00:18]} 57. Re7+ {[%emt 0:00:04]} Kc6 {[%emt 0:00:04]} 58. Rxh7 {[%emt 0:00:04]} Re8 {[%emt 0:00:32]} 59. Ra7 {[%emt 0:02:29]} Re2 {[%emt 0:00:25]} 60. h4 {[%emt 0:00:32]} 1-0